bitfinex/quotes_ETHUSD_20230403
["timestamp","ask_amount","ask_price","bid_price","bid_amount"]
[1680521948141,0.11000001,1805.8,1805.5,0.83077]
[1680521948741,0.00438308,1805.7,1805.5,0.83077]
[1680521949719,0.00438308,1805.7,1805.5,1.41086184]
[1680521950410,0.00438308,1805.7,1805.5,0.83077]
[1680521950614,0.00438308,1805.7,1805.6,0.083077]
[1680521950820,0.00438308,1805.7,1805.6,0.913817]
[1680521955761,0.00438308,1805.7,1805.6,1.49390884]
[1680521955930,0.00438308,1805.7,1805.6,12.36330884]
[1680521956136,0.00438308,1805.7,1805.6,12.36530884]
[1680521956347,0.11000001,1806.1,1805.6,13.05730884]
[1680521956547,0.11000001,1806.1,1805.9,1.45012912]
[1680521956776,0.11000001,1806.1,1806.0,2.51788829]
[1680521957435,0.11000001,1806.1,1806.0,3.31996]
[1680521957645,0.11000001,1806.1,1806.0,3.89988829]
[1680521957860,0.11000001,1806.1,1806.0,2.51788829]
[1680521958058,0.11000001,1806.1,1806.0,4.8370082]
[1680521958243,0.11000001,1806.1,1806.0,10.6650082]
[1680521958444,0.11000001,1806.1,1806.0,10.6670082]
[1680521958847,0.11000001,1806.1,1806.0,13.6730082]
[1680521959045,0.11000001,1806.1,1806.0,13.98580507]
[1680521960043,0.11000001,1806.1,1806.0,13.69430578]
[1680521961373,0.11000001,1806.1,1806.0,14.56450661]
[1680521962107,0.11000001,1806.1,1806.0,15.07630578]
[1680521963937,0.11000001,1806.1,1806.0,14.49760424]
[1680521966046,0.11000001,1806.4,1806.2,0.5]
[1680521966250,0.11000001,1806.4,1806.3,29.77273212]
[1680521966561,0.11000001,1806.4,1806.3,29.08273212]
[1680521966738,0.11000001,1806.4,1806.3,32.08273212]
[1680521967138,0.11000001,1806.4,1806.3,31.50509]
[1680521967359,0.11000001,1806.4,1806.3,35.59389994]
[1680521968639,0.11000001,1806.4,1806.3,23.53772994]
[1680521968977,0.11000001,1806.4,1806.3,16.44892]
[1680521969672,0.11414233,1806.4,1806.3,16.44892]
[1680521971578,0.11000001,1806.4,1806.3,16.44892]
[1680521972140,0.11000001,1806.4,1806.3,28.06468728]
[1680521972449,0.11000001,1806.4,1806.3,30.0263294]
[1680521972756,0.11000001,1806.4,1806.3,34.37395284]
[1680521973382,0.37027774,1806.5,1806.3,35.05895284]
[1680521973544,0.37027774,1806.5,1806.4,12.99376728]
[1680521973752,0.37027774,1806.5,1806.4,13.82613728]
[1680521974782,0.14874974,1806.5,1806.4,13.82613728]
[1680521974956,0.14874974,1806.5,1806.4,17.20516435]
[1680521978766,0.14874974,1806.5,1806.4,17.06968369]
[1680521979085,0.14874974,1806.5,1806.4,18.29468369]
[1680521979574,0.11000001,1807.2,1806.8,5.828]
[1680521979744,0.11000001,1807.2,1807.1,17.28337]
[1680521979949,0.11000001,1807.2,1807.1,20.07313728]
[1680521980182,0.11000001,1807.2,1807.1,23.07313728]
[1680521980386,0.11000001,1807.6,1807.1,23.0976479]
[1680521980591,0.11000001,1807.6,1807.3,7.048]
[1680521980886,0.11000001,1807.6,1807.4,14.02344728]
[1680521981186,0.11000001,1807.6,1807.4,14.02544728]
[1680521981392,0.11000001,1807.6,1807.4,19.39648]
[1680521981551,0.11000001,1807.6,1807.4,12.86368]
[1680521981752,0.11000001,1807.6,1807.4,18.69168]
[1680521986609,0.11000001,1807.6,1807.4,12.86368]
[1680521986910,0.11000001,1807.6,1807.4,11.20384]
[1680521987672,0.11000001,1807.6,1807.4,11.75712]
[1680521988079,0.11419442,1807.5,1807.4,11.75712]
[1680521990167,0.97744882,1807.9,1807.4,11.75712]
[1680521990368,0.04774488,1807.8,1807.4,11.76312]
[1680521990778,0.00449401,1807.5,1807.4,11.76312]
[1680521991378,0.00449401,1807.5,1807.4,0.28464]
[1680521991581,0.00449401,1807.5,1807.4,0.27664]
[1680521995509,0.00449401,1807.5,1807.3,0.28265]
[1680521995715,0.00449401,1807.5,1807.3,0.27665]
[1680521995920,0.00449401,1807.5,1807.3,0.28265]
[1680521996080,0.00449401,1807.5,1807.3,0.83596]
[1680521996279,0.00449401,1807.5,1807.3,0.85851118]
[1680521996508,0.00449401,1807.5,1807.3,0.83596]
[1680521996712,0.00449401,1807.5,1807.3,0.006]
[1680521996901,0.00449401,1807.5,1807.2,0.008]
[1680521997105,1.225,1807.4,1807.1,0.28267]
[1680521997324,1.3479494,1807.4,1807.1,0.28267]
[1680521997678,1.3479494,1807.4,1807.1,0.83604]
[1680521997918,1.225,1807.4,1807.1,0.83604]
[1680521998105,6.2438,1807.6,1807.1,0.83604]
[1680521998306,9.03156728,1807.6,1807.1,0.83604]
[1680521999717,0.00418014,1807.5,1807.1,0.85859118]
[1680522000035,3.76939624,1807.5,1807.1,0.28267]
[1680522000208,4.67297098,1807.5,1807.1,0.28267]
[1680522001102,4.67297098,1807.5,1807.1,0.006]
[1680522001295,4.67297098,1807.5,1807.1,0.27668]
[1680522001830,4.67297098,1807.5,1807.0,11.82012118]
[1680522002129,1.6892971,1807.4,1807.0,11.26673118]
[1680522002336,1.6892971,1807.4,1807.0,0.008]
[1680522002337,1.225,1807.2,1807.0,0.008]
[1680522002520,1.225,1807.2,1806.9,0.28271]
[1680522003417,1.225,1807.2,1807.0,0.02255118]
[1680522003609,1.225,1807.2,1807.0,0.29923118]
[1680522006330,4.48206438,1807.4,1807.0,0.85263118]
[1680522006531,0.44820644,1807.3,1807.0,0.85263118]
[1680522006695,1.225,1807.4,1807.0,0.85263118]
[1680522006979,9.5688,1807.6,1807.1,0.02251062]
[1680522006980,6.0138,1807.6,1807.1,0.02251062]
[1680522007124,6.0138,1807.6,1807.2,0.82998]
[1680522007125,8.80156728,1807.6,1807.2,0.82998]
[1680522007733,0.00418014,1807.5,1807.2,0.82998]
[1680522008147,0.00418014,1807.5,1807.2,0.85253118]
[1680522008303,0.00418014,1807.5,1807.3,0.08525312]
[1680522008507,0.00418014,1807.5,1807.4,0.82992]
[1680522008809,1.443368,1807.8,1807.4,0.82992]
[1680522009016,4.23113528,1807.8,1807.4,0.82992]
[1680522009213,1.443368,1807.8,1807.4,0.82992]
[1680522009425,1.443368,1807.8,1807.5,0.082992]
[1680522009616,1.443368,1807.8,1807.6,0.2766]
[1680522010016,1.443368,1807.8,1807.5,0.27661]
[1680522010216,0.00441089,1807.7,1807.3,0.32970932]
[1680522010419,1.22941089,1807.7,1807.3,0.87501932]
[1680522010636,1.22941089,1807.7,1807.3,1.98163932]
[1680522010817,1.22941089,1807.7,1807.3,1.98763932]
[1680522011032,0.00441089,1807.7,1807.3,1.98763932]
[1680522011355,0.00441089,1807.7,1807.3,2.18040325]
[1680522011561,0.00441089,1807.7,1807.3,1.07378325]
[1680522011738,0.00441089,1807.7,1807.3,0.87501932]
[1680522011953,0.00441089,1807.7,1807.3,0.32170932]
[1680522012135,1.21941089,1807.7,1807.3,0.32170932]
[1680522012462,1.21941089,1807.7,1807.3,0.87501932]
[1680522013511,1.21941089,1807.7,1807.3,0.32170932]
[1680522016514,1.21941089,1807.7,1807.3,0.96312325]
[1680522018119,0.00441089,1807.7,1807.3,0.96312325]
[1680522021965,0.0004132,1807.7,1807.3,0.94061511]
[1680522022418,0.00441089,1807.7,1807.3,0.94061511]
[1680522022560,0.00441089,1807.7,1807.4,0.09406151]
[1680522022755,0.00441089,1807.7,1807.5,0.27662]
[1680522024415,0.00441089,1807.7,1807.5,0.82987]
[1680522026999,0.00441089,1807.7,1807.5,0.85242118]
[1680522030637,0.00441089,1807.7,1807.5,1.42815517]
[1680522030836,0.00441089,1807.7,1807.6,0.14281552]
[1680522031079,0.006,1808.4,1807.6,16.0334828]
[1680522031382,0.68954628,1808.6,1808.3,0.02255118]
[1680522031383,0.11000001,1808.6,1808.3,0.02255118]
[1680522031674,0.11000001,1808.6,1808.4,0.02255118]
[1680522031971,0.11000001,1808.6,1808.4,0.85200118]
[1680522032172,0.11000001,1808.6,1808.4,1.95795118]
[1680522032375,0.11000001,1808.6,1808.4,1.96395118]
[1680522033190,0.11000001,1808.6,1808.4,1.95795118]
[1680522033322,0.11000001,1808.6,1808.4,1.96395118]
[1680522033523,0.11000001,1808.6,1808.4,0.82945]
[1680522033778,0.11000001,1808.6,1808.4,0.27648]
[1680522034329,0.11000001,1808.6,1808.4,0.82945]
[1680522034643,0.11000001,1808.6,1808.4,0.27648]
[1680522034955,0.11000001,1808.6,1808.4,0.82945]
[1680522035371,0.11000001,1808.6,1808.4,0.91465012]
[1680522035582,0.11000001,1808.6,1808.5,0.02255118]
[1680522035793,0.11000001,1808.6,1808.5,0.85196118]
[1680522037151,0.11000001,1808.6,1808.5,12.86056118]
[1680522037499,0.11000001,1808.6,1808.5,12.86256118]
[1680522037716,0.11000001,1808.6,1808.5,14.85358175]
[1680522038578,0.11000001,1808.6,1808.5,14.85958175]
[1680522040007,0.11000001,1808.6,1808.5,14.85758175]
[1680522040160,0.11000001,1808.6,1808.5,14.85958175]
[1680522040418,0.11000001,1808.6,1808.5,12.30962118]
[1680522040573,0.11000001,1808.6,1808.5,12.31562118]
[1680522041365,0.11427546,1808.6,1808.5,0.03055118]
[1680522041564,0.11427546,1808.6,1808.3,0.03055118]
[1680522041764,0.11427546,1808.6,1808.3,0.02255118]
[1680522043029,0.11427546,1808.6,1808.1,16.43385118]
[1680522043030,1.225,1808.5,1808.1,16.43385118]
[1680522043280,1.225,1808.5,1808.1,11.50317118]
[1680522043409,1.225,1808.5,1808.1,11.22665118]
[1680522043594,1.3927723,1808.5,1808.1,11.22665118]
[1680522044002,1.5863023,1808.5,1808.1,11.22665118]
[1680522044392,1.3927723,1808.5,1808.1,11.22665118]
[1680522044792,1.5863023,1808.5,1808.1,11.22665118]
[1680522045343,4.18053958,1808.5,1808.1,0.03055118]
[1680522045496,0.41805396,1808.4,1808.1,0.02255118]
[1680522045700,0.19355,1808.3,1808.1,0.02255118]
[1680522046005,4.42782124,1808.4,1807.9,11.37520118]
[1680522046405,4.62136124,1808.4,1807.9,11.37520118]
[1680522046603,4.62136124,1808.4,1807.9,11.09865118]
[1680522046841,4.42782124,1808.4,1807.9,11.37521118]
[1680522047066,4.62136124,1808.4,1807.9,11.09865118]
[1680522047263,4.62136124,1808.4,1807.9,11.37521118]
[1680522047472,4.42782124,1808.4,1807.9,11.37521118]
[1680522047771,0.00426127,1808.3,1807.9,11.37521118]
[1680522047924,0.00426127,1808.3,1808.0,0.02249942]
[1680522048123,0.00426127,1808.3,1808.0,0.29902942]
[1680522049140,0.00426127,1808.3,1808.0,0.29903942]
[1680522049975,0.00426127,1808.3,1808.0,0.02249942]
[1680522050316,0.00426127,1808.3,1808.0,0.29903942]
[1680522050520,0.00426127,1808.3,1808.0,0.02249942]
[1680522050950,0.00426127,1808.3,1808.0,0.29903942]
[1680522051148,0.00426127,1808.3,1808.0,1.66323561]
[1680522051349,0.00426127,1808.3,1808.0,2.21632561]
[1680522052030,0.00426127,1808.3,1808.1,0.02255118]
[1680522052244,0.00426127,1808.3,1808.2,0.27651]
[1680522052628,0.00426127,1808.3,1808.1,0.85212118]
[1680522052923,0.00426127,1808.3,1808.1,0.29906118]
[1680522053559,0.00426127,1808.3,1808.1,0.52334586]
[1680522055458,0.00426127,1808.3,1808.1,1.07640586]
[1680522055761,0.00426127,1808.3,1808.1,0.52334586]
[1680522058191,2.78776728,1808.2,1808.0,0.006]
[1680522058486,2.78776728,1808.2,1807.6,0.02855118]
[1680522058487,3.33015182,1808.0,1807.6,0.02855118]
[1680522058670,3.01776728,1807.9,1807.7,0.27658]
[1680522058961,3.01776728,1807.9,1807.6,0.30515118]
[1680522059162,3.01776728,1807.9,1807.6,0.02855118]
[1680522059627,3.01776728,1807.9,1807.6,0.29915118]
[1680522060354,3.01776728,1807.9,1807.6,0.02255118]
[1680522060528,0.00423762,1807.8,1807.6,0.02255118]
[1680522061161,0.91284343,1807.9,1807.6,0.02255118]
[1680522061543,0.00423762,1807.8,1807.6,0.02255118]
[1680522064072,0.00423762,1807.8,1807.6,0.85236118]
[1680522064390,0.00423762,1807.8,1807.7,0.02250315]
[1680522064684,0.00423762,1807.8,1807.7,0.73253531]
[1680522064884,0.00423762,1807.8,1807.7,11.52239315]
[1680522065186,0.00423762,1807.8,1807.7,11.52439315]
[1680522065332,0.00423762,1807.8,1807.7,12.07757315]
[1680522065536,0.00315182,1808.0,1807.8,0.02255118]
[1680522065833,0.00315182,1808.0,1807.8,0.29911118]
[1680522065988,0.00315182,1808.0,1807.8,1.50912061]
[1680522067948,0.00315182,1808.0,1807.8,1.23256061]
[1680522068164,0.00315182,1808.0,1807.8,0.02255118]
[1680522068788,0.00315182,1808.0,1807.8,0.29912118]
[1680522069093,0.00315182,1808.0,1807.8,0.02255118]
[1680522069443,0.0039775,1807.9,1807.8,0.02255118]
[1680522069743,0.0039775,1807.9,1807.8,0.29912118]
[1680522069963,0.0039775,1807.9,1807.8,1.50913161]
[1680522071162,0.0039775,1807.9,1807.8,0.29912118]
[1680522071349,0.0039775,1807.9,1807.8,0.02255118]
[1680522072746,0.0039775,1807.9,1807.8,0.29912118]
[1680522073592,0.0039775,1807.9,1807.8,0.02255118]
[1680522077899,0.0039775,1807.9,1807.8,0.29912118]
[1680522079686,0.0039775,1807.9,1807.8,0.02255118]
[1680522081340,2.79174478,1807.9,1807.8,0.02255118]
[1680522081495,3.98673444,1807.9,1807.8,0.02255118]
[1680522081692,4.21673444,1807.9,1807.8,0.02255118]
[1680522087696,0.5,1807.8,1807.6,0.57901258]
[1680522087903,0.19362,1807.6,1807.5,0.006]
[1680522088114,3.20895155,1807.6,1807.3,0.57901258]
[1680522088318,2.97895155,1807.6,1807.3,0.57901258]
[1680522089261,2.98495155,1807.6,1807.3,0.57901258]
[1680522089461,0.00395858,1807.5,1807.3,0.57901258]
[1680522089648,3.77900544,1807.6,1807.3,0.57901258]
[1680522091267,4.16625544,1807.6,1807.3,0.57901258]
[1680522091449,0.00395858,1807.5,1807.3,0.57901258]
[1680522091777,0.00395858,1807.5,1807.2,1.47008264]
[1680522091942,0.19758858,1807.5,1807.2,1.47008264]
[1680522093507,0.19758858,1807.5,1807.2,1.44753146]
[1680522093709,0.19758858,1807.5,1807.2,0.57901258]
[1680522093916,0.61461098,1807.5,1807.2,0.60156376]
[1680522094201,1.00188098,1807.5,1807.2,0.57901258]
[1680522095456,0.61461098,1807.5,1807.2,0.57901258]
[1680522097983,3.40237826,1807.5,1807.2,0.57901258]
[1680522098178,3.12800511,1807.4,1807.2,0.57901258]
[1680522098711,3.32164511,1807.4,1807.2,0.57901258]
[1680522098877,3.12800511,1807.4,1807.2,0.57901258]
[1680522100614,0.00394911,1807.3,1807.2,0.57901258]
[1680522108518,0.00394911,1807.3,1807.1,1.57008264]
[1680522114286,0.00394911,1807.3,1807.1,0.70156376]
[1680522121791,0.23394911,1807.3,1807.1,0.70156376]
[1680522123614,0.31351739,1807.2,1807.1,0.70156376]
[1680522123821,0.31351739,1807.2,1807.1,1.57008264]
[1680522124432,0.31802525,1807.2,1807.1,1.57008264]
[1680522124638,0.31351739,1807.2,1807.1,1.57008264]
[1680522125702,0.31351739,1807.2,1807.1,0.99107006]
[1680522126348,0.31351739,1807.2,1807.1,0.94107006]
[1680522128541,0.31802525,1807.2,1807.1,0.94107006]
[1680522129726,0.31802525,1807.2,1807.1,2.09909523]
[1680522130472,0.31802525,1807.2,1807.1,0.94107006]
[1680522131864,0.31802525,1807.2,1807.1,1.23057635]
[1680522132956,0.31802525,1807.2,1807.1,3.51849613]
[1680522133130,0.31802525,1807.2,1807.1,11.09466846]
[1680522133338,0.31802525,1807.2,1807.1,10.62964329]
[1680522133636,1.26654627,1807.9,1807.1,10.62964329]
[1680522133637,0.006,1807.8,1807.1,10.62964329]
[1680522133850,2.79376728,1807.8,1807.4,0.57887126]
[1680522134028,3.65403864,1807.8,1807.5,0.57887126]
[1680522134223,3.65403864,1807.8,1807.5,0.60142244]
[1680522134659,0.27630825,1807.7,1807.5,0.60142244]
[1680522134974,0.28230825,1807.7,1807.5,0.60142244]
[1680522135348,0.28230825,1807.7,1807.5,0.87804244]
[1680522135538,0.28230825,1807.7,1807.5,0.60142244]
[1680522137430,0.0045295,1807.6,1807.5,0.60142244]
[1680522140839,0.0045295,1807.6,1807.5,0.02255118]
[1680522141091,0.0045295,1807.6,1807.5,0.60142244]
[1680522141771,0.24768619,1807.6,1807.5,0.60142244]
[1680522142978,0.24768619,1807.6,1807.5,0.02255118]
[1680522143175,0.24768619,1807.6,1807.5,0.60142244]
[1680522143375,0.24768619,1807.6,1807.5,0.02255118]
[1680522146687,0.24768619,1807.6,1807.5,0.60142244]
[1680522146964,0.24768619,1807.6,1807.5,0.02255118]
[1680522150086,0.24452295,1807.6,1807.5,0.02255118]
[1680522150699,0.0045295,1807.6,1807.5,0.02255118]
[1680522151692,0.0045295,1807.6,1807.5,0.60142244]
[1680522153390,0.0045295,1807.6,1807.5,0.02255118]
[1680522155087,2.79229678,1807.6,1807.5,0.02255118]
[1680522155281,3.32452646,1807.6,1807.5,0.02255118]
[1680522156080,14.28539646,1807.6,1807.4,0.57887126]
[1680522156312,4.24276728,1807.5,1807.3,0.57887126]
[1680522156818,4.43639728,1807.5,1807.3,0.57887126]
[1680522157622,7.76339728,1807.5,1807.3,0.57887126]
[1680522157921,0.77633973,1807.4,1807.3,0.57887126]
[1680522158086,3.79410701,1807.4,1807.3,0.57887126]
[1680522160688,3.79410701,1807.4,1807.2,0.60142244]
[1680522160908,0.23,1807.3,1807.2,0.60142244]
[1680522167292,0.42365,1807.3,1807.2,0.60142244]
[1680522167512,0.23,1807.3,1807.2,0.60142244]
[1680522167854,0.23,1807.3,1807.2,0.02255118]
[1680522168156,0.23,1807.3,1807.2,0.60142244]
[1680522168358,0.6287757,1807.3,1807.2,0.02255118]
[1680522169321,0.8224257,1807.3,1807.2,0.02255118]
[1680522169655,0.6287757,1807.3,1807.2,0.02255118]
[1680522169831,0.8224257,1807.3,1807.2,0.02255118]
[1680522171259,0.6287757,1807.3,1807.2,0.02255118]
[1680522171445,0.8224257,1807.3,1807.2,0.02255118]
[1680522171640,3.41654298,1807.3,1807.2,0.02255118]
[1680522171851,3.61019298,1807.3,1807.2,0.02255118]
[1680522172821,3.41654298,1807.3,1807.2,0.02255118]
[1680522173326,3.61019298,1807.3,1807.2,0.02255118]
[1680522173832,3.41654298,1807.3,1807.2,0.02255118]
[1680522182276,0.23,1807.3,1807.2,0.02255118]
[1680522182576,0.23,1807.4,1807.2,0.02255118]
[1680522182747,3.01776728,1807.4,1807.2,0.02255118]
[1680522192988,3.01776728,1807.4,1807.2,0.60142244]
[1680522198884,3.01776728,1807.4,1807.3,0.57887126]
[1680522199086,0.23,1807.4,1807.3,0.57887126]
[1680522199288,4.86122968,1807.6,1807.4,0.02255118]
[1680522199289,0.008,1807.6,1807.4,0.02255118]
[1680522199600,0.006,1807.7,1807.4,0.60142244]
[1680522199802,2.79376728,1807.7,1807.4,0.60142244]
[1680522200315,2.79376728,1807.7,1807.4,0.87805244]
[1680522200476,2.78776728,1807.7,1807.4,1.06738567]
[1680522200807,0.23,1807.6,1807.4,0.79075567]
[1680522200963,0.23,1807.6,1807.4,1.06738567]
[1680522205209,0.23,1807.6,1807.4,0.87805244]
[1680522205649,2.78776728,1807.7,1807.4,0.87805244]
[1680522209586,2.78776728,1807.7,1807.4,0.60142244]
[1680522210626,2.78776728,1807.7,1807.4,0.87806244]
[1680522211202,2.78776728,1807.7,1807.4,0.29919118]
[1680522212299,2.78776728,1807.7,1807.4,0.87806244]
[1680522214097,3.89986401,1807.7,1807.4,0.02255118]
[1680522214325,3.89986401,1807.7,1807.4,0.29918118]
[1680522214615,3.89986401,1807.7,1807.4,0.02255118]
[1680522215322,3.89986401,1807.7,1807.4,0.29918118]
[1680522215628,3.40775368,1807.6,1807.4,0.02255118]
[1680522215792,6.73475368,1807.6,1807.4,0.02255118]
[1680522215993,6.73675368,1807.6,1807.4,0.02255118]
[1680522220086,12.56475368,1807.6,1807.4,0.02255118]
[1680522221704,12.56475368,1807.6,1807.4,0.02255118]
[1680522222035,12.56475368,1807.6,1807.3,0.60142244]
[1680522222218,1.25647537,1807.5,1807.3,0.60142244]
[1680522222522,3.01776728,1807.4,1807.3,0.60142244]
[1680522223089,3.01776728,1807.4,1807.3,0.02255118]
[1680522224197,3.01776728,1807.4,1807.3,0.60142244]
[1680522224634,3.01776728,1807.4,1807.3,0.02255118]
[1680522225211,3.01776728,1807.4,1807.3,0.60142244]
[1680522225528,3.01776728,1807.4,1807.3,0.02255118]
[1680522226332,3.01776728,1807.4,1807.3,0.60142244]
[1680522226630,3.01776728,1807.4,1807.3,0.02255118]
[1680522236466,3.01776728,1807.4,1807.3,0.60142244]
[1680522239417,3.64617217,1807.4,1807.3,0.02255118]
[1680522240118,3.64617217,1807.4,1807.3,0.60142244]
[1680522240523,3.64617217,1807.4,1807.3,0.02255118]
[1680522243238,3.01776728,1807.4,1807.3,0.02255118]
[1680522245579,0.23,1807.4,1807.3,0.02255118]
[1680522245749,0.23,1807.5,1807.3,1.43138244]
[1680522245949,3.01776728,1807.5,1807.3,1.43138244]
[1680522246590,3.01776728,1807.5,1807.3,0.87807244]
[1680522250195,0.23,1807.5,1807.3,0.87807244]
[1680522250345,0.23,1807.6,1807.3,0.87807244]
[1680522250551,3.01776728,1807.6,1807.3,1.08774313]
[1680522250792,3.01776728,1807.6,1807.5,0.02255118]
[1680522251155,0.008,1807.7,1807.5,0.85242118]
[1680522251349,3.91454627,1807.9,1807.5,0.29917118]
[1680522251551,2.78776728,1807.8,1807.5,0.29917118]
[1680522251790,2.79376728,1807.8,1807.5,0.29917118]
[1680522254376,2.79376728,1807.8,1807.5,0.02255118]
[1680522255375,2.78776728,1807.8,1807.5,0.02255118]
[1680522256669,2.78776728,1807.8,1807.7,0.02255118]
[1680522256878,3.01776728,1807.8,1807.7,0.02255118]
[1680522266817,3.21136728,1807.8,1807.7,0.02255118]
[1680522267524,3.01776728,1807.8,1807.7,0.02255118]
[1680522270332,3.21136728,1807.8,1807.7,0.02255118]
[1680522270527,4.38225864,1807.8,1807.7,0.02255118]
[1680522271930,13.53725864,1807.8,1807.7,0.02255118]
[1680522272134,13.53925864,1807.8,1807.7,0.02255118]
[1680522277828,13.73285864,1807.8,1807.7,0.02255118]
[1680522278031,13.53925864,1807.8,1807.7,0.02255118]
[1680522278997,13.73285864,1807.8,1807.7,0.02255118]
[1680522279295,13.53925864,1807.8,1807.7,0.02255118]
[1680522281806,13.73285864,1807.8,1807.7,0.02255118]
[1680522282007,13.53925864,1807.8,1807.7,0.02255118]
[1680522283653,13.73285864,1807.8,1807.7,0.02255118]
[1680522283967,13.53925864,1807.8,1807.7,0.02255118]
[1680522287118,13.73285864,1807.8,1807.7,0.02255118]
[1680522287322,13.53925864,1807.8,1807.7,0.02255118]
[1680522294456,14.11880491,1807.8,1807.7,0.02255118]
[1680522296758,3.01976728,1807.8,1807.7,0.02255118]
[1680522296944,3.01776728,1807.8,1807.7,0.02255118]
[1680522313439,3.21136728,1807.8,1807.7,0.02255118]
[1680522315142,3.01776728,1807.8,1807.7,0.02255118]
[1680522325511,3.21136728,1807.8,1807.7,0.02255118]
[1680522326009,3.39765864,1807.8,1807.7,0.02255118]
[1680522332889,3.74629997,1807.8,1807.7,0.02255118]
[1680522334198,7.65410997,1807.8,1807.5,0.60142244]
[1680522334381,1.189021,1807.7,1807.6,0.02255118]
[1680522334582,4.36401828,1807.7,1807.6,0.02255118]
[1680522336452,3.97678828,1807.7,1807.6,0.02255118]
[1680522336803,4.32669921,1807.7,1807.6,0.02255118]
[1680522337691,4.13308921,1807.7,1807.6,0.02255118]
[1680522342296,3.36767821,1807.7,1807.6,0.02255118]
[1680522353065,0.57991093,1807.7,1807.6,0.02255118]
[1680522353265,0.34991093,1807.7,1807.6,0.02255118]
[1680522353770,0.58554627,1807.9,1807.6,0.2766]
[1680522353926,3.36731355,1807.9,1807.8,0.02255118]
[1680522354127,3.60331355,1807.9,1807.8,0.02255118]
[1680522354366,3.02376728,1807.9,1807.8,0.02255118]
[1680522354869,3.3604194,1807.9,1807.8,0.02255118]
[1680522355583,3.3604194,1807.9,1807.8,0.01885549]
[1680522363471,3.75203354,1807.9,1807.8,0.01885549]
[1680522365155,3.35783697,1807.9,1807.8,0.01885549]
[1680522370405,4.13097324,1807.9,1807.8,0.01885549]
[1680522370613,3.55142697,1807.9,1807.8,0.01885549]
[1680522370903,3.35783697,1807.9,1807.8,0.01885549]
[1680522371787,3.55142697,1807.9,1807.8,0.01885549]
[1680522371996,7.43083429,1807.9,1807.8,0.01885549]
[1680522372210,7.43283429,1807.9,1807.8,0.01885549]
[1680522373169,7.62642429,1807.9,1807.8,0.01885549]
[1680522373405,7.43283429,1807.9,1807.8,0.01885549]
[1680522376021,8.20597056,1807.9,1807.8,0.01885549]
[1680522377004,14.03397056,1807.9,1807.8,0.01885549]
[1680522378485,18.90177056,1807.9,1807.8,0.01885549]
[1680522382123,19.59277056,1807.9,1807.8,0.01885549]
[1680522383164,19.97995056,1807.9,1807.8,0.01885549]
[1680522386074,19.59277056,1807.9,1807.8,0.01885549]
[1680522386458,19.97995056,1807.9,1807.6,0.01885549]
[1680522386629,5.55499506,1807.8,1807.6,0.01885549]
[1680522386829,2.78776728,1807.7,1807.6,0.01885549]
[1680522387075,3.01776728,1807.7,1807.6,0.01885549]
[1680522387245,3.01776728,1807.7,1807.6,0.01562076]
[1680522387844,3.2959849,1807.7,1807.6,0.01562076]
[1680522388045,3.93895591,1807.7,1807.6,0.01562076]
[1680522391812,3.94244901,1807.7,1807.6,0.01562076]
[1680522395730,13.09744901,1807.7,1807.6,0.01562076]
[1680522395931,13.29305901,1807.7,1807.6,0.01562076]
[1680522398298,13.85347769,1807.7,1807.6,0.01562076]
[1680522398556,14.43302396,1807.7,1807.6,0.01562076]
[1680522399149,13.85347769,1807.7,1807.6,0.01562076]
[1680522399320,14.43302396,1807.7,1807.6,0.01562076]
[1680522399526,13.85347769,1807.7,1807.6,0.01562076]
[1680522400270,14.43302396,1807.7,1807.6,0.01562076]
[1680522400899,13.85347769,1807.7,1807.6,0.01562076]
[1680522403551,7.27144901,1807.7,1807.6,0.01562076]
[1680522409709,7.46505901,1807.7,1807.6,0.01562076]
[1680522410483,7.27144901,1807.7,1807.6,0.01562076]
[1680522410666,7.46505901,1807.7,1807.6,0.01562076]
[1680522410837,7.27144901,1807.7,1807.6,0.01562076]
[1680522411734,7.46505901,1807.7,1807.6,0.01562076]
[1680522419763,8.43183528,1807.7,1807.6,0.01562076]
[1680522421152,14.25983528,1807.7,1807.6,0.01562076]
[1680522421459,14.95083528,1807.7,1807.6,0.01562076]
[1680522421651,14.95083528,1807.7,1807.4,0.01562076]
[1680522421895,3.52063,1807.5,1807.4,0.01172322]
[1680522422095,7.38366728,1807.5,1807.4,0.01172322]
[1680522422315,7.61566728,1807.5,1807.4,0.01172322]
[1680522422868,13.76271302,1807.5,1807.4,0.01172322]
[1680522423054,15.37343808,1807.5,1807.4,0.01172322]
[1680522425776,15.3765743,1807.5,1807.4,0.01172322]
[1680522429961,15.1829443,1807.5,1807.4,0.01172322]
[1680522430193,15.3765743,1807.5,1807.4,0.01172322]
[1680522432192,14.6885743,1807.5,1807.4,0.01172322]
[1680522433616,14.6945743,1807.5,1807.1,0.01172322]
[1680522433764,6.34476728,1807.4,1807.1,0.01172322]
[1680522433963,6.34676728,1807.4,1807.1,0.01172322]
[1680522434865,0.32643884,1807.3,1807.1,0.01172322]
[1680522435065,3.01776728,1807.2,1807.1,0.01172322]
[1680522435317,3.01776728,1807.2,1807.0,0.06172322]
[1680522438014,0.00312107,1807.1,1807.0,0.06172322]
[1680522441285,0.00312107,1807.1,1807.0,0.64059448]
[1680522441914,0.32881056,1807.1,1807.0,0.64059448]
[1680522442121,0.55881056,1807.1,1807.0,0.64059448]
[1680522442985,0.55881056,1807.1,1807.0,2.71075462]
[1680522443187,0.32881056,1807.1,1807.0,2.73326649]
[1680522443595,0.32881056,1807.1,1807.0,3.28666649]
[1680522447190,0.32881056,1807.1,1807.0,2.73326649]
[1680522449994,0.32881056,1807.1,1807.0,2.45656649]
[1680522450140,0.32881056,1807.1,1807.0,2.73326649]
[1680522453286,0.32881056,1807.1,1807.0,0.93980635]
[1680522453453,0.32881056,1807.1,1807.0,0.64059448]
[1680522453799,0.32881056,1807.1,1807.0,0.91729448]
[1680522454657,0.32881056,1807.1,1807.0,0.64059448]
[1680522454857,0.32881056,1807.1,1807.0,0.91729448]
[1680522455292,0.32881056,1807.1,1807.0,0.64059448]
[1680522455490,0.32614277,1807.1,1807.0,0.91729448]
[1680522455802,0.32614277,1807.1,1807.0,0.64059448]
[1680522455972,0.32881056,1807.1,1807.0,0.91729448]
[1680522456159,0.32881056,1807.1,1807.0,0.64059448]
[1680522457668,0.32881056,1807.1,1807.0,1.50890137]
[1680522457861,0.32881056,1807.1,1807.0,0.64059448]
[1680522458172,3.34657784,1807.1,1807.0,0.64059448]
[1680522461574,3.68203562,1807.1,1807.0,0.64059448]
[1680522465393,3.68203562,1807.1,1807.0,0.64059448]
[1680522465793,3.68203562,1807.1,1807.0,0.06172322]
[1680522471113,3.34657784,1807.1,1807.0,0.06172322]
[1680522502083,4.23125784,1807.1,1807.0,0.06172322]
[1680522504263,7.55825784,1807.1,1807.0,0.06172322]
[1680522504480,7.56025784,1807.1,1807.0,0.06172322]
[1680522506072,7.36657784,1807.1,1807.0,0.06172322]